Workbook

Sheet 주행 기록
B1: 주행 기록
C11: 실비 정산 | E11: 합계
C12: km | E12: 실비 정산
C17: 2012-05-01 | E17: 2012-05-10
C19: 기간 | E19: 기간
C20: 시작 | E20: 종료
C26: 54 | E26: 9,800
C28: 실비 정산 | E28: 이전 연료
C29: 원/km | E29: 주행 기록

Sheet 기록 데이터
B1: 주행 기록
B5: 날짜 | C5: 활동 | D5: 주행거리 1 | E5: 위치 | F5: 주행거리 2 | G5: 목적지 | H5: 실비 정산 | I5: 리터 | J5: 비용 | K5: km | L5: 연비 | M5: 원/km | N5: 참고
B6: 2012-05-01 | C6: 이동 | D6: 10,123 | E6: 서초구 방배동 883-11 | F6: 10,130 | I6: 15.56 | J6: ₩64,110.00 | K6: =miles -> 7 | L6: =IF(OR(LEN(데이터[[#This Row],[주행거리 2]]),데이터[[#This Row],[주행거리 1]]=""),"",IFERROR(데이터[[#This Row],[km]]/데이터[[#This Row],[리터]],"")) ->  | M6: =IF(데이터[[#This Row],[연비]]="","",100*데이터[[#This Row],[비용]]/데이터[[#This Row],[km]]) -> 
B7: 2012-05-01 | C7: 이동 | D7: 10,130 | E7: 사무실 | F7: 10,200 | G7: 마포구 공덕 1동 81 | H7: 예 | K7: =miles -> 70 | L7: =IF(OR(LEN(데이터[[#This Row],[주행거리 2]]),데이터[[#This Row],[주행거리 1]]=""),"",IFERROR(데이터[[#This Row],[km]]/데이터[[#This Row],[리터]],"")) ->  | M7: =IF(데이터[[#This Row],[연비]]="","",100*데이터[[#This Row],[비용]]/데이터[[#This Row],[km]]) -> 
B8: 2012-05-01 | C8: 이동 | D8: 10,200 | E8: 강남구 대치동 315-11 | F8: 10,285 | G8: 사무실 | H8: 예 | K8: =miles -> 85 | L8: =IF(OR(LEN(데이터[[#This Row],[주행거리 2]]),데이터[[#This Row],[주행거리 1]]=""),"",IFERROR(데이터[[#This Row],[km]]/데이터[[#This Row],[리터]],"")) ->  | M8: =IF(데이터[[#This Row],[연비]]="","",100*데이터[[#This Row],[비용]]/데이터[[#This Row],[km]]) -> 
B9: 2012-05-02 | C9: 이동 | D9: 10,285 | E9: 사무실 | F9: 10,450 | G9: 성북구 길음동 136-11 | H9: 예 | K9: =miles -> 165 | L9: =IF(OR(LEN(데이터[[#This Row],[주행거리 2]]),데이터[[#This Row],[주행거리 1]]=""),"",IFERROR(데이터[[#This Row],[km]]/데이터[[#This Row],[리터]],"")) ->  | M9: =IF(데이터[[#This Row],[연비]]="","",100*데이터[[#This Row],[비용]]/데이터[[#This Row],[km]]) -> 
B10: 2012-05-02 | C10: 연료 | D10: 10,450 | E10: 동광 주유소 | I10: 11.20 | J10: ₩55,420.00 | K10: =miles -> 650 | L10: =IF(OR(LEN(데이터[[#This Row],[주행거리 2]]),데이터[[#This Row],[주행거리 1]]=""),"",IFERROR(데이터[[#This Row],[km]]/데이터[[#This Row],[리터]],"")) -> 58.0 | M10: =IF(데이터[[#This Row],[연비]]="","",100*데이터[[#This Row],[비용]]/데이터[[#This Row],[km]]) -> 8526.2
B11: 2012-05-02 | C11: 이동 | D11: 10,500 | E11: 성북구 길음동 136-11 | F11: 10,518 | G11: 사무실 | H11: 예 | K11: =miles -> 18 | L11: =IF(OR(LEN(데이터[[#This Row],[주행거리 2]]),데이터[[#This Row],[주행거리 1]]=""),"",IFERROR(데이터[[#This Row],[km]]/데이터[[#This Row],[리터]],"")) ->  | M11: =IF(데이터[[#This Row],[연비]]="","",100*데이터[[#This Row],[비용]]/데이터[[#This Row],[km]]) -> 
B12: 2012-05-03 | C12: 이동 | D12: 10,518 | E12: 사무실 | F12: 10,745 | G12: 사무실 | H12: 예 | K12: =miles -> 227 | L12: =IF(OR(LEN(데이터[[#This Row],[주행거리 2]]),데이터[[#This Row],[주행거리 1]]=""),"",IFERROR(데이터[[#This Row],[km]]/데이터[[#This Row],[리터]],"")) ->  | M12: =IF(데이터[[#This Row],[연비]]="","",100*데이터[[#This Row],[비용]]/데이터[[#This Row],[km]]) -> 
B13: 2012-05-04 | C13: 연료 | D13: 10,745 | E13: 서초구 방배동 883-11 | I13: 16.60 | J13: ₩69,240.00 | K13: =miles -> 295 | L13: =IF(OR(LEN(데이터[[#This Row],[주행거리 2]]),데이터[[#This Row],[주행거리 1]]=""),"",IFERROR(데이터[[#This Row],[km]]/데이터[[#This Row],[리터]],"")) -> 17.8 | M13: =IF(데이터[[#This Row],[연비]]="","",100*데이터[[#This Row],[비용]]/데이터[[#This Row],[km]]) -> 23471.2
B14: 2012-05-04 | C14: 이동 | D14: 10,745 | E14: 사무실 | F14: 10,800 | G14: 동작구 대방동 36-8 | H14: 예 | K14: =miles -> 55 | L14: =IF(OR(LEN(데이터[[#This Row],[주행거리 2]]),데이터[[#This Row],[주행거리 1]]=""),"",IFERROR(데이터[[#This Row],[km]]/데이터[[#This Row],[리터]],"")) ->  | M14: =IF(데이터[[#This Row],[연비]]="","",100*데이터[[#This Row],[비용]]/데이터[[#This Row],[km]]) -> 
B15: 2012-05-04 | C15: 이동 | D15: 10,800 | E15: 동작구 대방동 36-8 | F15: 10,875 | G15: 사무실 | H15: 예 | K15: =miles -> 75 | L15: =IF(OR(LEN(데이터[[#This Row],[주행거리 2]]),데이터[[#This Row],[주행거리 1]]=""),"",IFERROR(데이터[[#This Row],[km]]/데이터[[#This Row],[리터]],"")) ->  | M15: =IF(데이터[[#This Row],[연비]]="","",100*데이터[[#This Row],[비용]]/데이터[[#This Row],[km]]) -> 
B16: 2012-05-07 | C16: 이동 | D16: 10,875 | E16: 사무실 | F16: 10,921 | G16: 마포구 공덕 1동 81 | H16: 예 | K16: =miles -> 46 | L16: =IF(OR(LEN(데이터[[#This Row],[주행거리 2]]),데이터[[#This Row],[주행거리 1]]=""),"",IFERROR(데이터[[#This Row],[km]]/데이터[[#This Row],[리터]],"")) ->  | M16: =IF(데이터[[#This Row],[연비]]="","",100*데이터[[#This Row],[비용]]/데이터[[#This Row],[km]]) -> 
B17: 2012-05-07 | C17: 이동 | D17: 10,921 | E17: 강남구 대치동 315-11 | F17: 10,969 | G17: 사무실 | H17: 예 | K17: =miles -> 48 | L17: =IF(OR(LEN(데이터[[#This Row],[주행거리 2]]),데이터[[#This Row],[주행거리 1]]=""),"",IFERROR(데이터[[#This Row],[km]]/데이터[[#This Row],[리터]],"")) ->  | M17: =IF(데이터[[#This Row],[연비]]="","",100*데이터[[#This Row],[비용]]/데이터[[#This Row],[km]]) -> 
B18: 2012-05-09 | C18: 이동 | D18: 10,969 | E18: 사무실 | F18: 11,000 | G18: 강동구 성내동 143 | H18: 예 | K18: =miles -> 31 | L18: =IF(OR(LEN(데이터[[#This Row],[주행거리 2]]),데이터[[#This Row],[주행거리 1]]=""),"",IFERROR(데이터[[#This Row],[km]]/데이터[[#This Row],[리터]],"")) ->  | M18: =IF(데이터[[#This Row],[연비]]="","",100*데이터[[#This Row],[비용]]/데이터[[#This Row],[km]]) -> 
B19: 2012-05-09 | C19: 이동 | D19: 11,000 | E19: 강동구 성내동 143 | F19: 11,100 | G19: 집 | H19: 아니요 | K19: =miles -> 100 | L19: =IF(OR(LEN(데이터[[#This Row],[주행거리 2]]),데이터[[#This Row],[주행거리 1]]=""),"",IFERROR(데이터[[#This Row],[km]]/데이터[[#This Row],[리터]],"")) ->  | M19: =IF(데이터[[#This Row],[연비]]="","",100*데이터[[#This Row],[비용]]/데이터[[#This Row],[km]]) -> 

Sheet 계산 (hidden)
A1: *** 이 시트는 숨겨 두어야 합니다. ***
I6: =OFFSET(I9,,secondAxis="연료 비용") -> 연비
M7: 1
H8: 이동 | I8: 연료 | J8: 연료 | L8: Second Axis: | M8: =REPT("연비",M7=1)&REPT("연료 비용",M7=2) -> 연비
H9: 주행 거리(km) | I9: 연비 | J9: 원/km
C10: 실비 정산 거리(km): | D10: =SUMIFS(데이터[km],데이터[실비 정산],"예",데이터[날짜],">="&periodStart,데이터[날짜],"<="&periodEnd) -> 500 | F10: 1 | G10: =periodStart -> 2012-05-01 | H10: =SUMIFS(데이터[km],데이터[날짜],G10,데이터[활동],$H$8) -> 162 | I10: =IFERROR(AVERAGEIFS(데이터[연비],데이터[날짜],G10,데이터[활동],$I$8),NA()) ->  | J10: =IFERROR(AVERAGEIFS(데이터[원/km],데이터[날짜],G10,데이터[활동],$J$8),NA()) -> 
C11: 실비 정산 총액: | D11: =D10*ReimbursementPerMile*10 -> ₩270,000 | F11: 2 | G11: =G10+1 -> 2012-05-02 | H11: =SUMIFS(데이터[km],데이터[날짜],G11,데이터[활동],$H$8) -> 183 | I11: =IFERROR(AVERAGEIFS(데이터[연비],데이터[날짜],G11,데이터[활동],$I$8),NA()) -> 58.0 | J11: =IFERROR(AVERAGEIFS(데이터[원/km],데이터[날짜],G11,데이터[활동],$J$8),NA()) -> 8526.2
F12: 3 | G12: 2012-05-03 | H12: =SUMIFS(데이터[km],데이터[날짜],G12,데이터[활동],$H$8) -> 227 | I12: =IFERROR(AVERAGEIFS(데이터[연비],데이터[날짜],G12,데이터[활동],$I$8),NA()) ->  | J12: =IFERROR(AVERAGEIFS(데이터[원/km],데이터[날짜],G12,데이터[활동],$J$8),NA()) -> 
F13: 4 | G13: 2012-05-04 | H13: =SUMIFS(데이터[km],데이터[날짜],G13,데이터[활동],$H$8) -> 130 | I13: =IFERROR(AVERAGEIFS(데이터[연비],데이터[날짜],G13,데이터[활동],$I$8),NA()) -> 17.8 | J13: =IFERROR(AVERAGEIFS(데이터[원/km],데이터[날짜],G13,데이터[활동],$J$8),NA()) -> 23471.2
F14: 5 | G14: 2012-05-05 | H14: =SUMIFS(데이터[km],데이터[날짜],G14,데이터[활동],$H$8) -> 0 | I14: =IFERROR(AVERAGEIFS(데이터[연비],데이터[날짜],G14,데이터[활동],$I$8),NA()) ->  | J14: =IFERROR(AVERAGEIFS(데이터[원/km],데이터[날짜],G14,데이터[활동],$J$8),NA()) -> 
F15: 6 | G15: 2012-05-06 | H15: =SUMIFS(데이터[km],데이터[날짜],G15,데이터[활동],$H$8) -> 0 | I15: =IFERROR(AVERAGEIFS(데이터[연비],데이터[날짜],G15,데이터[활동],$I$8),NA()) ->  | J15: =IFERROR(AVERAGEIFS(데이터[원/km],데이터[날짜],G15,데이터[활동],$J$8),NA()) -> 
F16: 7 | G16: 2012-05-07 | H16: =SUMIFS(데이터[km],데이터[날짜],G16,데이터[활동],$H$8) -> 94 | I16: =IFERROR(AVERAGEIFS(데이터[연비],데이터[날짜],G16,데이터[활동],$I$8),NA()) ->  | J16: =IFERROR(AVERAGEIFS(데이터[원/km],데이터[날짜],G16,데이터[활동],$J$8),NA()) -> 
F17: 8 | G17: 2012-05-08 | H17: =SUMIFS(데이터[km],데이터[날짜],G17,데이터[활동],$H$8) -> 0 | I17: =IFERROR(AVERAGEIFS(데이터[연비],데이터[날짜],G17,데이터[활동],$I$8),NA()) ->  | J17: =IFERROR(AVERAGEIFS(데이터[원/km],데이터[날짜],G17,데이터[활동],$J$8),NA()) -> 
F18: 9 | G18: 2012-05-09 | H18: =SUMIFS(데이터[km],데이터[날짜],G18,데이터[활동],$H$8) -> 131 | I18: =IFERROR(AVERAGEIFS(데이터[연비],데이터[날짜],G18,데이터[활동],$I$8),NA()) ->  | J18: =IFERROR(AVERAGEIFS(데이터[원/km],데이터[날짜],G18,데이터[활동],$J$8),NA()) -> 
F19: 10 | G19: 2012-05-10 | H19: =SUMIFS(데이터[km],데이터[날짜],G19,데이터[활동],$H$8) -> 0 | I19: =IFERROR(AVERAGEIFS(데이터[연비],데이터[날짜],G19,데이터[활동],$I$8),NA()) ->  | J19: =IFERROR(AVERAGEIFS(데이터[원/km],데이터[날짜],G19,데이터[활동],$J$8),NA()) -> 
F20: 11 | G20: 2012-05-11 | H20: =SUMIFS(데이터[km],데이터[날짜],G20,데이터[활동],$H$8) -> 0 | I20: =IFERROR(AVERAGEIFS(데이터[연비],데이터[날짜],G20,데이터[활동],$I$8),NA()) ->  | J20: =IFERROR(AVERAGEIFS(데이터[원/km],데이터[날짜],G20,데이터[활동],$J$8),NA()) -> 
F21: 12 | G21: 2012-05-12 | H21: =SUMIFS(데이터[km],데이터[날짜],G21,데이터[활동],$H$8) -> 0 | I21: =IFERROR(AVERAGEIFS(데이터[연비],데이터[날짜],G21,데이터[활동],$I$8),NA()) ->  | J21: =IFERROR(AVERAGEIFS(데이터[원/km],데이터[날짜],G21,데이터[활동],$J$8),NA()) -> 
F22: 13 | G22: 2012-05-13 | H22: =SUMIFS(데이터[km],데이터[날짜],G22,데이터[활동],$H$8) -> 0 | I22: =IFERROR(AVERAGEIFS(데이터[연비],데이터[날짜],G22,데이터[활동],$I$8),NA()) ->  | J22: =IFERROR(AVERAGEIFS(데이터[원/km],데이터[날짜],G22,데이터[활동],$J$8),NA()) -> 
F23: 14 | G23: 2012-05-14 | H23: =SUMIFS(데이터[km],데이터[날짜],G23,데이터[활동],$H$8) -> 0 | I23: =IFERROR(AVERAGEIFS(데이터[연비],데이터[날짜],G23,데이터[활동],$I$8),NA()) ->  | J23: =IFERROR(AVERAGEIFS(데이터[원/km],데이터[날짜],G23,데이터[활동],$J$8),NA()) -> 
F24: 15 | G24: 2012-05-15 | H24: =SUMIFS(데이터[km],데이터[날짜],G24,데이터[활동],$H$8) -> 0 | I24: =IFERROR(AVERAGEIFS(데이터[연비],데이터[날짜],G24,데이터[활동],$I$8),NA()) ->  | J24: =IFERROR(AVERAGEIFS(데이터[원/km],데이터[날짜],G24,데이터[활동],$J$8),NA()) -> 
F25: 16 | G25: 2012-05-16 | H25: =SUMIFS(데이터[km],데이터[날짜],G25,데이터[활동],$H$8) -> 0 | I25: =IFERROR(AVERAGEIFS(데이터[연비],데이터[날짜],G25,데이터[활동],$I$8),NA()) ->  | J25: =IFERROR(AVERAGEIFS(데이터[원/km],데이터[날짜],G25,데이터[활동],$J$8),NA()) -> 
F26: 17 | G26: 2012-05-17 | H26: =SUMIFS(데이터[km],데이터[날짜],G26,데이터[활동],$H$8) -> 0 | I26: =IFERROR(AVERAGEIFS(데이터[연비],데이터[날짜],G26,데이터[활동],$I$8),NA()) ->  | J26: =IFERROR(AVERAGEIFS(데이터[원/km],데이터[날짜],G26,데이터[활동],$J$8),NA()) -> 
F27: 18 | G27: 2012-05-18 | H27: =SUMIFS(데이터[km],데이터[날짜],G27,데이터[활동],$H$8) -> 0 | I27: =IFERROR(AVERAGEIFS(데이터[연비],데이터[날짜],G27,데이터[활동],$I$8),NA()) ->  | J27: =IFERROR(AVERAGEIFS(데이터[원/km],데이터[날짜],G27,데이터[활동],$J$8),NA()) -> 
F28: 19 | G28: 2012-05-19 | H28: =SUMIFS(데이터[km],데이터[날짜],G28,데이터[활동],$H$8) -> 0 | I28: =IFERROR(AVERAGEIFS(데이터[연비],데이터[날짜],G28,데이터[활동],$I$8),NA()) ->  | J28: =IFERROR(AVERAGEIFS(데이터[원/km],데이터[날짜],G28,데이터[활동],$J$8),NA()) -> 
F29: 20 | G29: 2012-05-20 | H29: =SUMIFS(데이터[km],데이터[날짜],G29,데이터[활동],$H$8) -> 0 | I29: =IFERROR(AVERAGEIFS(데이터[연비],데이터[날짜],G29,데이터[활동],$I$8),NA()) ->  | J29: =IFERROR(AVERAGEIFS(데이터[원/km],데이터[날짜],G29,데이터[활동],$J$8),NA()) -> 
F30: 21 | G30: 2012-05-21 | H30: =SUMIFS(데이터[km],데이터[날짜],G30,데이터[활동],$H$8) -> 0 | I30: =IFERROR(AVERAGEIFS(데이터[연비],데이터[날짜],G30,데이터[활동],$I$8),NA()) ->  | J30: =IFERROR(AVERAGEIFS(데이터[원/km],데이터[날짜],G30,데이터[활동],$J$8),NA()) -> 
F31: 22 | G31: 2012-05-22 | H31: =SUMIFS(데이터[km],데이터[날짜],G31,데이터[활동],$H$8) -> 0 | I31: =IFERROR(AVERAGEIFS(데이터[연비],데이터[날짜],G31,데이터[활동],$I$8),NA()) ->  | J31: =IFERROR(AVERAGEIFS(데이터[원/km],데이터[날짜],G31,데이터[활동],$J$8),NA()) -> 
F32: 23 | G32: 2012-05-23 | H32: =SUMIFS(데이터[km],데이터[날짜],G32,데이터[활동],$H$8) -> 0 | I32: =IFERROR(AVERAGEIFS(데이터[연비],데이터[날짜],G32,데이터[활동],$I$8),NA()) ->  | J32: =IFERROR(AVERAGEIFS(데이터[원/km],데이터[날짜],G32,데이터[활동],$J$8),NA()) -> 
F33: 24 | G33: 2012-05-24 | H33: =SUMIFS(데이터[km],데이터[날짜],G33,데이터[활동],$H$8) -> 0 | I33: =IFERROR(AVERAGEIFS(데이터[연비],데이터[날짜],G33,데이터[활동],$I$8),NA()) ->  | J33: =IFERROR(AVERAGEIFS(데이터[원/km],데이터[날짜],G33,데이터[활동],$J$8),NA()) -> 
F34: 25 | G34: 2012-05-25 | H34: =SUMIFS(데이터[km],데이터[날짜],G34,데이터[활동],$H$8) -> 0 | I34: =IFERROR(AVERAGEIFS(데이터[연비],데이터[날짜],G34,데이터[활동],$I$8),NA()) ->  | J34: =IFERROR(AVERAGEIFS(데이터[원/km],데이터[날짜],G34,데이터[활동],$J$8),NA()) -> 
F35: 26 | G35: 2012-05-26 | H35: =SUMIFS(데이터[km],데이터[날짜],G35,데이터[활동],$H$8) -> 0 | I35: =IFERROR(AVERAGEIFS(데이터[연비],데이터[날짜],G35,데이터[활동],$I$8),NA()) ->  | J35: =IFERROR(AVERAGEIFS(데이터[원/km],데이터[날짜],G35,데이터[활동],$J$8),NA()) -> 
F36: 27 | G36: 2012-05-27 | H36: =SUMIFS(데이터[km],데이터[날짜],G36,데이터[활동],$H$8) -> 0 | I36: =IFERROR(AVERAGEIFS(데이터[연비],데이터[날짜],G36,데이터[활동],$I$8),NA()) ->  | J36: =IFERROR(AVERAGEIFS(데이터[원/km],데이터[날짜],G36,데이터[활동],$J$8),NA()) -> 
F37: 28 | G37: 2012-05-28 | H37: =SUMIFS(데이터[km],데이터[날짜],G37,데이터[활동],$H$8) -> 0 | I37: =IFERROR(AVERAGEIFS(데이터[연비],데이터[날짜],G37,데이터[활동],$I$8),NA()) ->  | J37: =IFERROR(AVERAGEIFS(데이터[원/km],데이터[날짜],G37,데이터[활동],$J$8),NA()) -> 
F38: 29 | G38: 2012-05-29 | H38: =SUMIFS(데이터[km],데이터[날짜],G38,데이터[활동],$H$8) -> 0 | I38: =IFERROR(AVERAGEIFS(데이터[연비],데이터[날짜],G38,데이터[활동],$I$8),NA()) ->  | J38: =IFERROR(AVERAGEIFS(데이터[원/km],데이터[날짜],G38,데이터[활동],$J$8),NA()) -> 
F39: 30 | G39: 2012-05-30 | H39: =SUMIFS(데이터[km],데이터[날짜],G39,데이터[활동],$H$8) -> 0 | I39: =IFERROR(AVERAGEIFS(데이터[연비],데이터[날짜],G39,데이터[활동],$I$8),NA()) ->  | J39: =IFERROR(AVERAGEIFS(데이터[원/km],데이터[날짜],G39,데이터[활동],$J$8),NA()) -> 
F40: 31 | G40: 2012-05-31 | H40: =SUMIFS(데이터[km],데이터[날짜],G40,데이터[활동],$H$8) -> 0 | I40: =IFERROR(AVERAGEIFS(데이터[연비],데이터[날짜],G40,데이터[활동],$I$8),NA()) ->  | J40: =IFERROR(AVERAGEIFS(데이터[원/km],데이터[날짜],G40,데이터[활동],$J$8),NA()) -> 
F41: 32 | G41: 2012-06-01 | H41: =SUMIFS(데이터[km],데이터[날짜],G41,데이터[활동],$H$8) -> 0 | I41: =IFERROR(AVERAGEIFS(데이터[연비],데이터[날짜],G41,데이터[활동],$I$8),NA()) ->  | J41: =IFERROR(AVERAGEIFS(데이터[원/km],데이터[날짜],G41,데이터[활동],$J$8),NA()) -> 
F42: 33 | G42: 2012-06-02 | H42: =SUMIFS(데이터[km],데이터[날짜],G42,데이터[활동],$H$8) -> 0 | I42: =IFERROR(AVERAGEIFS(데이터[연비],데이터[날짜],G42,데이터[활동],$I$8),NA()) ->  | J42: =IFERROR(AVERAGEIFS(데이터[원/km],데이터[날짜],G42,데이터[활동],$J$8),NA()) -> 
F43: 34 | G43: =G42+1 -> 2012-06-03 | H43: =SUMIFS(데이터[km],데이터[날짜],G43,데이터[활동],$H$8) -> 0 | I43: =IFERROR(AVERAGEIFS(데이터[연비],데이터[날짜],G43,데이터[활동],$I$8),NA()) ->  | J43: =IFERROR(AVERAGEIFS(데이터[원/km],데이터[날짜],G43,데이터[활동],$J$8),NA()) -> 
F44: 35 | G44: 2012-06-04 | H44: =SUMIFS(데이터[km],데이터[날짜],G44,데이터[활동],$H$8) -> 0 | I44: =IFERROR(AVERAGEIFS(데이터[연비],데이터[날짜],G44,데이터[활동],$I$8),NA()) ->  | J44: =IFERROR(AVERAGEIFS(데이터[원/km],데이터[날짜],G44,데이터[활동],$J$8),NA()) -> 
F45: 36 | G45: 2012-06-05 | H45: =SUMIFS(데이터[km],데이터[날짜],G45,데이터[활동],$H$8) -> 0 | I45: =IFERROR(AVERAGEIFS(데이터[연비],데이터[날짜],G45,데이터[활동],$I$8),NA()) ->  | J45: =IFERROR(AVERAGEIFS(데이터[원/km],데이터[날짜],G45,데이터[활동],$J$8),NA()) -> 
F46: 37 | G46: 2012-06-06 | H46: =SUMIFS(데이터[km],데이터[날짜],G46,데이터[활동],$H$8) -> 0 | I46: =IFERROR(AVERAGEIFS(데이터[연비],데이터[날짜],G46,데이터[활동],$I$8),NA()) ->  | J46: =IFERROR(AVERAGEIFS(데이터[원/km],데이터[날짜],G46,데이터[활동],$J$8),NA()) -> 
F47: 38 | G47: 2012-06-07 | H47: =SUMIFS(데이터[km],데이터[날짜],G47,데이터[활동],$H$8) -> 0 | I47: =IFERROR(AVERAGEIFS(데이터[연비],데이터[날짜],G47,데이터[활동],$I$8),NA()) ->  | J47: =IFERROR(AVERAGEIFS(데이터[원/km],데이터[날짜],G47,데이터[활동],$J$8),NA()) -> 
F48: 39 | G48: 2012-06-08 | H48: =SUMIFS(데이터[km],데이터[날짜],G48,데이터[활동],$H$8) -> 0 | I48: =IFERROR(AVERAGEIFS(데이터[연비],데이터[날짜],G48,데이터[활동],$I$8),NA()) ->  | J48: =IFERROR(AVERAGEIFS(데이터[원/km],데이터[날짜],G48,데이터[활동],$J$8),NA()) -> 
F49: 40 | G49: 2012-06-09 | H49: =SUMIFS(데이터[km],데이터[날짜],G49,데이터[활동],$H$8) -> 0 | I49: =IFERROR(AVERAGEIFS(데이터[연비],데이터[날짜],G49,데이터[활동],$I$8),NA()) ->  | J49: =IFERROR(AVERAGEIFS(데이터[원/km],데이터[날짜],G49,데이터[활동],$J$8),NA()) -> 
F50: 41 | G50: 2012-06-10 | H50: =SUMIFS(데이터[km],데이터[날짜],G50,데이터[활동],$H$8) -> 0 | I50: =IFERROR(AVERAGEIFS(데이터[연비],데이터[날짜],G50,데이터[활동],$I$8),NA()) ->  | J50: =IFERROR(AVERAGEIFS(데이터[원/km],데이터[날짜],G50,데이터[활동],$J$8),NA()) -> 
F51: 42 | G51: 2012-06-11 | H51: =SUMIFS(데이터[km],데이터[날짜],G51,데이터[활동],$H$8) -> 0 | I51: =IFERROR(AVERAGEIFS(데이터[연비],데이터[날짜],G51,데이터[활동],$I$8),NA()) ->  | J51: =IFERROR(AVERAGEIFS(데이터[원/km],데이터[날짜],G51,데이터[활동],$J$8),NA()) -> 
F52: 43 | G52: 2012-06-12 | H52: =SUMIFS(데이터[km],데이터[날짜],G52,데이터[활동],$H$8) -> 0 | I52: =IFERROR(AVERAGEIFS(데이터[연비],데이터[날짜],G52,데이터[활동],$I$8),NA()) ->  | J52: =IFERROR(AVERAGEIFS(데이터[원/km],데이터[날짜],G52,데이터[활동],$J$8),NA()) -> 
F53: 44 | G53: 2012-06-13 | H53: =SUMIFS(데이터[km],데이터[날짜],G53,데이터[활동],$H$8) -> 0 | I53: =IFERROR(AVERAGEIFS(데이터[연비],데이터[날짜],G53,데이터[활동],$I$8),NA()) ->  | J53: =IFERROR(AVERAGEIFS(데이터[원/km],데이터[날짜],G53,데이터[활동],$J$8),NA()) -> 
F54: 45 | G54: 2012-06-14 | H54: =SUMIFS(데이터[km],데이터[날짜],G54,데이터[활동],$H$8) -> 0 | I54: =IFERROR(AVERAGEIFS(데이터[연비],데이터[날짜],G54,데이터[활동],$I$8),NA()) ->  | J54: =IFERROR(AVERAGEIFS(데이터[원/km],데이터[날짜],G54,데이터[활동],$J$8),NA()) -> 
F55: 46 | G55: 2012-06-15 | H55: =SUMIFS(데이터[km],데이터[날짜],G55,데이터[활동],$H$8) -> 0 | I55: =IFERROR(AVERAGEIFS(데이터[연비],데이터[날짜],G55,데이터[활동],$I$8),NA()) ->  | J55: =IFERROR(AVERAGEIFS(데이터[원/km],데이터[날짜],G55,데이터[활동],$J$8),NA()) -> 
F56: 47 | G56: 2012-06-16 | H56: =SUMIFS(데이터[km],데이터[날짜],G56,데이터[활동],$H$8) -> 0 | I56: =IFERROR(AVERAGEIFS(데이터[연비],데이터[날짜],G56,데이터[활동],$I$8),NA()) ->  | J56: =IFERROR(AVERAGEIFS(데이터[원/km],데이터[날짜],G56,데이터[활동],$J$8),NA()) -> 
F57: 48 | G57: 2012-06-17 | H57: =SUMIFS(데이터[km],데이터[날짜],G57,데이터[활동],$H$8) -> 0 | I57: =IFERROR(AVERAGEIFS(데이터[연비],데이터[날짜],G57,데이터[활동],$I$8),NA()) ->  | J57: =IFERROR(AVERAGEIFS(데이터[원/km],데이터[날짜],G57,데이터[활동],$J$8),NA()) -> 
F58: 49 | G58: 2012-06-18 | H58: =SUMIFS(데이터[km],데이터[날짜],G58,데이터[활동],$H$8) -> 0 | I58: =IFERROR(AVERAGEIFS(데이터[연비],데이터[날짜],G58,데이터[활동],$I$8),NA()) ->  | J58: =IFERROR(AVERAGEIFS(데이터[원/km],데이터[날짜],G58,데이터[활동],$J$8),NA()) -> 
F59: 50 | G59: 2012-06-19 | H59: =SUMIFS(데이터[km],데이터[날짜],G59,데이터[활동],$H$8) -> 0 | I59: =IFERROR(AVERAGEIFS(데이터[연비],데이터[날짜],G59,데이터[활동],$I$8),NA()) ->  | J59: =IFERROR(AVERAGEIFS(데이터[원/km],데이터[날짜],G59,데이터[활동],$J$8),NA()) -> 
F60: 51 | G60: 2012-06-20 | H60: =SUMIFS(데이터[km],데이터[날짜],G60,데이터[활동],$H$8) -> 0 | I60: =IFERROR(AVERAGEIFS(데이터[연비],데이터[날짜],G60,데이터[활동],$I$8),NA()) ->  | J60: =IFERROR(AVERAGEIFS(데이터[원/km],데이터[날짜],G60,데이터[활동],$J$8),NA()) -> 
F61: 52 | G61: 2012-06-21 | H61: =SUMIFS(데이터[km],데이터[날짜],G61,데이터[활동],$H$8) -> 0 | I61: =IFERROR(AVERAGEIFS(데이터[연비],데이터[날짜],G61,데이터[활동],$I$8),NA()) ->  | J61: =IFERROR(AVERAGEIFS(데이터[원/km],데이터[날짜],G61,데이터[활동],$J$8),NA()) -> 
F62: 53 | G62: 2012-06-22 | H62: =SUMIFS(데이터[km],데이터[날짜],G62,데이터[활동],$H$8) -> 0 | I62: =IFERROR(AVERAGEIFS(데이터[연비],데이터[날짜],G62,데이터[활동],$I$8),NA()) ->  | J62: =IFERROR(AVERAGEIFS(데이터[원/km],데이터[날짜],G62,데이터[활동],$J$8),NA()) -> 
F63: 54 | G63: 2012-06-23 | H63: =SUMIFS(데이터[km],데이터[날짜],G63,데이터[활동],$H$8) -> 0 | I63: =IFERROR(AVERAGEIFS(데이터[연비],데이터[날짜],G63,데이터[활동],$I$8),NA()) ->  | J63: =IFERROR(AVERAGEIFS(데이터[원/km],데이터[날짜],G63,데이터[활동],$J$8),NA()) -> 
F64: 55 | G64: 2012-06-24 | H64: =SUMIFS(데이터[km],데이터[날짜],G64,데이터[활동],$H$8) -> 0 | I64: =IFERROR(AVERAGEIFS(데이터[연비],데이터[날짜],G64,데이터[활동],$I$8),NA()) ->  | J64: =IFERROR(AVERAGEIFS(데이터[원/km],데이터[날짜],G64,데이터[활동],$J$8),NA()) -> 
F65: 56 | G65: 2012-06-25 | H65: =SUMIFS(데이터[km],데이터[날짜],G65,데이터[활동],$H$8) -> 0 | I65: =IFERROR(AVERAGEIFS(데이터[연비],데이터[날짜],G65,데이터[활동],$I$8),NA()) ->  | J65: =IFERROR(AVERAGEIFS(데이터[원/km],데이터[날짜],G65,데이터[활동],$J$8),NA()) -> 
F66: 57 | G66: 2012-06-26 | H66: =SUMIFS(데이터[km],데이터[날짜],G66,데이터[활동],$H$8) -> 0 | I66: =IFERROR(AVERAGEIFS(데이터[연비],데이터[날짜],G66,데이터[활동],$I$8),NA()) ->  | J66: =IFERROR(AVERAGEIFS(데이터[원/km],데이터[날짜],G66,데이터[활동],$J$8),NA()) -> 
F67: 58 | G67: 2012-06-27 | H67: =SUMIFS(데이터[km],데이터[날짜],G67,데이터[활동],$H$8) -> 0 | I67: =IFERROR(AVERAGEIFS(데이터[연비],데이터[날짜],G67,데이터[활동],$I$8),NA()) ->  | J67: =IFERROR(AVERAGEIFS(데이터[원/km],데이터[날짜],G67,데이터[활동],$J$8),NA()) -> 
F68: 59 | G68: 2012-06-28 | H68: =SUMIFS(데이터[km],데이터[날짜],G68,데이터[활동],$H$8) -> 0 | I68: =IFERROR(AVERAGEIFS(데이터[연비],데이터[날짜],G68,데이터[활동],$I$8),NA()) ->  | J68: =IFERROR(AVERAGEIFS(데이터[원/km],데이터[날짜],G68,데이터[활동],$J$8),NA()) -> 
F69: 60 | G69: 2012-06-29 | H69: =SUMIFS(데이터[km],데이터[날짜],G69,데이터[활동],$H$8) -> 0 | I69: =IFERROR(AVERAGEIFS(데이터[연비],데이터[날짜],G69,데이터[활동],$I$8),NA()) ->  | J69: =IFERROR(AVERAGEIFS(데이터[원/km],데이터[날짜],G69,데이터[활동],$J$8),NA()) -> 
